bitfinex-derivatives/quotes_ETHF0:USTF0_20251211
["timestamp","ask_amount","ask_price","bid_price","bid_amount"]
[1765413804576,5.90177617,3280.5,3280.4,0.15239]
[1765413804972,5.90177617,3280.5,3279.6,0.15242]
[1765413804973,5.8972,3279.7,3279.6,0.15242]
[1765413805173,5.8972,3279.7,3278.9,3.2078]
[1765413805174,3.0275,3279.1,3279.0,0.15245]
[1765413805375,3.0275,3279.1,3278.9,3.2078]
[1765413805376,3.2078,3279.2,3279.1,0.15245]
[1765413805580,3.2078,3279.6,3279.1,0.15245]
[1765413805778,9.105,3279.6,3279.5,0.15243]
[1765413805985,3.2078,3279.6,3279.5,0.15243]
[1765413807093,6.2353,3279.6,3279.5,0.15243]
[1765413807294,9.105,3279.6,3279.5,0.15243]
[1765413811695,3.2078,3279.6,3279.5,2.96163]
[1765413812099,3.2078,3279.6,3279.5,5.56623]
[1765413813591,0.00255559,3279.7,3279.6,7.15593]
[1765413813792,3.2078,3280.0,3279.9,2.96161]
[1765413813989,3.2078,3280.0,3279.9,5.56621]
[1765413814190,3.2078,3280.4,3280.3,0.15239]
[1765413814389,8.6289,3280.4,3280.3,0.15239]
[1765413814900,8.63114509,3280.4,3280.3,0.15515326]
[1765413815400,8.63114509,3280.4,3280.3,0.00276326]
[1765413815596,5.4211,3279.7,3279.6,0.15242]
[1765413815790,5.4211,3279.7,3279.4,7.057]
[1765413815791,5.4211,3279.5,3279.4,7.057]
[1765413816697,5.4211,3279.2,3279.1,0.15245]
[1765413818101,8.6289,3279.3,3279.2,0.15244]
[1765413818696,3.2078,3279.3,3279.2,0.15244]
[1765413818906,3.2078,3279.3,3279.2,2.96164]
[1765413819099,3.2078,3279.3,3279.2,5.56624]
[1765413819500,3.2078,3279.7,3279.6,7.0035]
[1765413819698,3.2078,3279.7,3279.6,7.15593]
[1765413820700,3.2078,3280.2,3280.1,5.4138]
[1765413820894,3.2078,3280.2,3280.1,5.5662]
[1765413821097,3.2078,3280.6,3280.3,5.56619]
[1765413821692,1.5594,3282.6,3280.3,5.56619]
[1765413821693,3.2078,3281.0,3280.3,5.56619]
[1765413822399,8.6289,3281.0,3280.9,0.15236]
[1765413822900,3.2078,3281.0,3280.9,2.96156]
[1765413823099,3.2078,3281.0,3280.9,7.15586]
[1765413823296,3.21016577,3281.0,3280.9,7.15810509]
[1765413823599,0.00236577,3281.0,3280.9,7.15810509]
[1765413826200,0.00236577,3281.0,3280.9,19.47510509]
[1765413826905,0.00236577,3281.0,3280.9,21.23964467]
[1765413827706,0.00236577,3281.0,3280.9,19.46810509]
[1765413828600,0.00236577,3281.0,3280.9,7.15810509]
[1765413828800,3.21016577,3281.0,3280.9,4.55350509]
[1765413828995,8.63126577,3281.0,3280.9,0.15460509]
[1765413829807,5.82616577,3281.0,3280.9,0.15460509]
[1765413830010,3.21016577,3281.0,3280.9,2.96380509]
[1765413830609,8.63126577,3281.0,3280.9,0.15460509]
[1765413832010,5.82616577,3281.0,3280.9,0.15460509]
[1765413832309,5.4211,3280.3,3280.2,0.1524]
[1765413834104,3.2078,3280.6,3280.4,0.15239]
[1765413834306,2.616,3280.5,3280.4,2.96159]
[1765413834510,5.4211,3280.5,3280.4,0.15239]
[1765413834705,2.616,3280.5,3280.4,2.96159]
[1765413834913,5.8238,3280.6,3280.5,0.15238]
[1765413835516,3.2078,3280.6,3280.5,5.56618]
[1765413836206,3.21016577,3281.0,3280.9,5.4138]
[1765413836611,0.00236577,3281.0,3280.9,5.56616]
[1765413837519,5.8238,3281.8,3281.7,0.15233]
[1765413838320,8.6289,3281.8,3281.7,0.15233]
[1765413838619,8.6325679,3281.8,3281.7,0.15469577]
[1765413839315,8.6325679,3281.8,3281.7,0.00236577]
[1765413839523,8.6325679,3281.8,3281.0,0.15236]
[1765413839524,4.754,3281.1,3281.0,0.15236]
[1765413839727,7.9618,3281.1,3281.0,0.15236]
[1765413840516,4.754,3280.4,3280.3,0.15239]
[1765413841023,4.754,3280.1,3280.0,3.2078]
[1765413841416,4.754,3280.1,3279.5,3.2078]
[1765413841612,4.754,3280.1,3280.0,0.15241]
[1765413842920,4.754,3279.4,3279.3,0.15244]
[1765413843112,4.75632834,3279.4,3279.3,0.15244]
[1765413843510,2.37862834,3279.4,3279.3,0.15244]
[1765413843715,2.3763,3278.8,3278.7,3.2078]
[1765413843914,4.754,3278.8,3278.7,3.2078]
[1765413844218,4.754,3278.8,3278.6,0.15247]
[1765413844815,2.3763,3278.8,3278.7,0.15247]
[1765413845016,3.2078,3279.0,3278.4,1.4746]
[1765413846221,2.3763,3278.5,3278.4,1.4746]
[1765413846421,5.5855,3279.0,3278.3,3.2078]
[1765413846422,6.1789,3278.4,3278.3,3.2078]
[1765413846725,4.754,3278.2,3278.1,12.295]
[1765413846919,3.2078,3278.4,3278.3,2.3859]
[1765413847116,3.2078,3278.4,3278.3,4.8778]
[1765413847323,3.2078,3278.4,3278.3,2.3859]
[1765413847524,3.2078,3278.4,3278.3,2.53839]
[1765413847825,0.00457617,3278.7,3278.6,5.03027]
[1765413848125,0.00232834,3279.4,3279.3,5.03024]
[1765413848328,0.00232834,3279.4,3279.3,6.79477958]
[1765413849925,0.00232834,3279.4,3279.3,0.15244]
[1765413850120,4.75632834,3279.4,3279.3,0.15244]
[1765413850721,2.37862834,3279.4,3279.3,0.15244]
[1765413850925,0.00232834,3279.4,3279.3,2.43054]
[1765413851125,0.00232834,3279.4,3279.3,0.15244]
[1765413851330,0.00232834,3279.4,3279.3,4.77804]
[1765413851625,0.00232834,3279.4,3279.3,6.54257958]
[1765413852224,0.00232834,3279.4,3279.3,4.77804]
[1765413852622,0.00232834,3279.4,3279.3,2.43054]
[1765413852926,8.19932834,3279.4,3279.3,0.15244]
[1765413853630,4.9892,3278.7,3278.6,0.15247]
[1765413853830,8.197,3278.7,3278.6,0.15247]
[1765413854629,5.6904,3278.7,3278.6,0.15247]
[1765413854823,3.2078,3279.1,3278.1,3.2078]
[1765413856427,2.4826,3279.0,3278.9,0.15245]
[1765413858036,3.2078,3279.1,3279.0,3.82815]
[1765413858329,0.00232834,3279.4,3279.2,0.15244]
[1765413858330,8.197,3279.3,3279.2,0.15244]
[1765413858929,3.2078,3279.3,3279.2,4.77804]
[1765413859237,5.6904,3279.3,3279.2,0.15244]
[1765413859424,2.4826,3279.3,3279.2,0.15244]
[1765413859729,0.00232834,3279.4,3279.3,4.77804]
[1765413860130,0.00232834,3279.4,3279.3,6.54257958]
[1765413860318,0.00232834,3279.4,3279.3,4.77804]
[1765413861120,0.00232834,3279.4,3279.3,0.15244]
[1765413861426,4.9892,3278.7,3278.6,0.15247]
[1765413862327,4.9892,3278.4,3278.3,0.00457617]
[1765413862633,8.197,3278.4,3278.3,0.00457617]
[1765413862827,9.5479,3278.4,3278.3,0.00457617]
[1765413863027,4.9892,3278.1,3278.0,0.1525]
[1765413863428,4.9892,3277.4,3277.3,0.15253]
[1765413863821,8.197,3277.4,3277.3,0.15253]
[1765413864228,3.2078,3277.4,3277.3,0.15253]
[1765413864531,0.00457617,3277.7,3276.9,1.76453958]
[1765413864532,4.99377617,3277.7,3277.6,0.15252]
[1765413864827,0.00457617,3277.7,3277.6,4.77812]
[1765413865034,3.2078,3278.5,3277.7,4.6256]
[1765413865237,4.9892,3278.4,3278.3,0.15248]
[1765413865531,8.197,3278.4,3278.3,0.15248]
[1765413865732,8.197,3278.4,3277.4,3.16213958]
[1765413866026,4.9892,3278.3,3278.2,0.15249]
[1765413866233,3.2078,3278.4,3278.3,0.15249]
[1765413866422,3.2078,3278.4,3278.3,6.54262958]
[1765413867329,0.00457617,3278.6,3278.4,0.15248]
[1765413867837,0.00457617,3278.6,3278.5,4.77808]
[1765413868024,3.2078,3278.8,3278.7,4.67917]
[1765413868228,7.5997,3278.8,3278.7,0.15247]
[1765413868428,5.4108,3278.8,3278.7,0.15247]
[1765413868731,3.2078,3279.3,3279.1,0.15244]
[1765413869436,3.2078,3279.3,3279.2,0.15244]
[1765413870131,0.00232834,3279.4,3279.3,0.15244]
[1765413870337,0.00232834,3279.4,3279.3,4.67914]
[1765413871729,0.00457617,3279.5,3279.1,1.76453958]
[1765413871730,0.00457617,3279.5,3279.4,4.67913]
[1765413872030,4.3919,3279.6,3279.1,0.15245]
[1765413872228,2.203,3278.6,3278.5,0.15248]
[1765413872537,4.3919,3277.9,3277.3,0.15253]
[1765413872834,3.2078,3277.7,3277.6,0.00690451]
[1765413873842,0.00221099,3277.9,3277.6,0.00690451]
[1765413873843,0.00221099,3277.9,3277.7,0.15251]
[1765413874031,0.00221099,3277.9,3277.8,0.15251]
[1765413874535,3.2078,3278.6,3277.8,1.76453958]
[1765413874727,3.2078,3278.6,3278.4,1.76453958]
[1765413875133,3.2078,3279.1,3278.6,0.15247]
[1765413875335,3.2078,3279.1,3278.4,4.97233958]
[1765413875535,3.21129949,3279.1,3278.4,4.97233958]
[1765413875731,3.21587566,3279.1,3278.4,4.97233958]
[1765413876237,3.21587566,3279.1,3279.0,0.15245]
[1765413876540,0.00807566,3279.1,3279.0,0.15245]
[1765413879939,3.2078,3279.9,3279.8,0.15242]
[1765413880843,3.21012441,3279.9,3279.8,0.15242]
[1765413882537,7.60202441,3279.9,3279.8,0.15242]
[1765413884143,3.21012441,3279.9,3279.8,4.67912]
[1765413884339,5.4108,3280.8,3280.7,0.15237]
[1765413884537,7.5997,3280.8,3280.7,0.15237]
[1765413885242,5.4108,3280.8,3280.7,0.15237]
[1765413885440,3.21024058,3280.8,3280.7,0.15589617]
[1765413886144,5.41324058,3280.8,3280.7,0.15589617]
[1765413886645,7.60214058,3280.8,3280.7,0.15589617]
[1765413887134,5.41324058,3280.8,3280.7,0.15589617]
[1765413887530,7.60214058,3280.8,3280.7,0.15589617]
[1765413888745,0.15247,3278.7,3278.5,3.2078]
[1765413888947,3.2078,3278.6,3276.3,0.00457617]
[1765413889238,3.2078,3276.9,3276.1,3.2078]
[1765413889438,1.3195,3277.4,3275.7,0.1526]
[1765413889640,1.3195,3277.4,3276.3,2.05471747]
[1765413889641,1.32208012,3277.4,3276.3,2.05471747]
[1765413889847,1.32208012,3277.4,3276.3,2.20729747]
[1765413889848,2.73289,3276.4,3276.3,2.20729747]
[1765413890043,0.00258012,3277.4,3277.3,0.15253]
[1765413890340,0.9441,3279.5,3278.0,0.1525]
[1765413890547,3.2078,3278.9,3278.6,2.05471747]
[1765413890743,3.2078,3279.8,3279.2,1.3428]
[1765413890940,3.07736294,3279.8,3279.7,0.15242]
[1765413891141,3.2078,3281.0,3280.9,0.15236]
[1765413891440,3.2078,3281.8,3281.7,0.15233]
[1765413891640,3.2078,3282.0,3281.7,0.15233]
[1765413891841,1.3195,3284.0,3281.4,1.3428]
[1765413891842,0.15223,3283.8,3281.4,1.3428]
[1765413892041,1.3195,3284.0,3282.0,0.00457617]
[1765413892251,1.3195,3284.0,3282.5,0.15229]
[1765413892746,3.2078,3283.3,3282.6,3.36009]
[1765413892949,3.2078,3283.7,3283.2,1.3428]
[1765413893140,0.00344663,3284.0,3283.5,3.2078]
[1765413893341,0.00344663,3284.0,3283.2,0.15226]
[1765413893647,3.2078,3283.9,3283.2,0.15226]
[1765413894043,0.00344663,3284.0,3283.7,3.2078]
[1765413894539,0.00344663,3284.0,3283.9,0.15223]
[1765413895045,0.00344663,3284.0,3283.2,12.0726]
[1765413895245,0.00344663,3284.0,3283.6,3.2078]
[1765413895549,0.00344663,3284.0,3283.4,3.2078]
[1765413895843,0.00344663,3284.0,3282.4,2.91543072]
[1765413895844,0.00344663,3284.0,3283.0,3.2078]
[1765413896143,0.00344663,3284.0,3283.4,3.2078]
[1765413896949,3.2078,3283.5,3282.7,3.2078]
[1765413897147,3.2078,3283.9,3282.7,3.2078]
[1765413897350,3.2078,3283.9,3283.1,3.2078]
[1765413897652,3.2078,3283.3,3282.7,3.2078]
[1765413898549,3.2078,3283.9,3283.1,3.2078]
[1765413898749,3.2078,3283.4,3282.9,0.15227]
[1765413899046,3.2078,3283.8,3283.1,3.2078]
[1765413899754,3.2078,3283.8,3283.1,3.36006]
[1765413900148,3.2078,3283.8,3282.7,3.2078]
[1765413900450,3.2078,3283.0,3281.6,3.2078]
[1765413900647,3.2078,3282.5,3282.0,0.15688617]
[1765413900944,3.2078,3282.9,3282.1,3.2078]
[1765413901154,1.9182,3283.2,3282.5,3.2078]
[1765413901342,1.9182,3283.2,3282.5,3.210474]
[1765413901547,3.2078,3283.4,3282.6,0.15228]
[1765413901747,3.2078,3283.9,3282.8,0.15228]
[1765413901947,0.00344663,3284.0,3283.7,0.15223]
[1765413902450,0.00344663,3284.0,3283.3,3.2078]
[1765413902451,3.2078,3283.9,3282.9,3.36007]
[1765413902754,3.2078,3283.5,3282.9,3.36007]
[1765413902948,0.00344663,3284.0,3282.9,3.36007]
[1765413902949,3.2078,3283.9,3283.0,0.15226]
[1765413903346,3.2078,3283.9,3283.3,3.2078]
[1765413903747,0.00344663,3284.0,3283.7,3.2078]
[1765413904644,0.00344663,3284.0,3283.9,0.15223]
[1765413905447,6.86788296,3286.6,3284.1,1.8039]
[1765413905448,3.2078,3285.2,3284.1,1.8039]
[1765413905649,3.2078,3285.6,3285.0,3.2078]
[1765413905854,3.2078,3286.5,3285.4,3.2078]
[1765413906050,3.2078,3285.8,3285.0,3.2078]
[1765413906244,3.2078,3285.9,3285.0,1.8039]
[1765413906443,3.2078,3285.5,3285.0,0.0029114]
[1765413906949,3.2078,3285.1,3284.3,0.00456899]
[1765413907152,3.2078,3284.7,3283.5,3.2078]
[1765413907448,0.94748122,3284.6,3283.5,3.2078]
[1765413907648,0.94748122,3284.6,3282.7,2.28]
[1765413907649,3.2078,3285.1,3283.9,3.36002]
[1765413907855,0.94754856,3285.0,3284.0,0.15222]
[1765413908053,3.2078,3284.7,3284.0,0.15556689]
[1765413908248,0.94754856,3284.6,3284.3,3.2078]
[1765413908555,0.00454506,3284.8,3284.3,3.2078]
[1765413908750,0.00454506,3284.8,3284.2,0.00456899]
[1765413909055,0.00454506,3284.8,3284.2,3.21236899]
[1765413909350,0.95231656,3284.8,3284.4,0.1522]
[1765413909648,3.2078,3285.7,3284.7,3.2078]
[1765413909850,3.2078,3286.2,3285.4,3.2078]
[1765413910050,1.9182,3287.7,3285.9,1.8039]
[1765413910051,3.2078,3286.6,3285.9,1.8039]
[1765413910247,0.94764887,3286.5,3286.4,0.15211]
[1765413910558,3.2078,3286.6,3285.9,1.8039]
[1765413910749,2.83438632,3287.3,3286.4,3.2078]
[1765413910954,0.94772817,3286.8,3286.4,3.21008559]
[1765413911151,0.94772817,3286.7,3286.4,3.21008559]
[1765413911349,0.94772817,3286.6,3286.4,3.21008559]
[1765413911651,0.94772817,3286.5,3286.4,0.00228559]
[1765413911851,1.25431143,3286.9,3286.4,0.15439559]
[1765413912059,0.94712961,3286.8,3286.4,0.15439559]
[1765413912358,0.94712961,3286.7,3286.4,0.15439559]
[1765413912653,0.94712961,3286.6,3286.4,0.15439559]
[1765413912856,1.25431143,3286.9,3286.4,0.15439559]
[1765413913057,0.94665,3286.8,3286.7,3.2078]
[1765413913552,0.94665,3286.8,3286.4,0.00228559]
[1765413913756,0.94665,3286.7,3286.4,0.00228559]
[1765413913953,0.94665,3286.6,3286.4,0.00228559]
[1765413914251,0.94665,3286.5,3286.4,0.15439559]
[1765413915151,0.00305527,3286.9,3286.6,0.1521]
[1765413915357,0.00305527,3286.9,3286.8,3.35989]
[1765413915652,0.94258643,3286.9,3286.8,3.35989]
[1765413915852,1.589057,3287.8,3287.6,0.15205]
[1765413916152,3.2078,3287.9,3287.8,0.15204]
[1765413916358,3.2078,3288.4,3288.1,0.15203]
[1765413916652,1.589057,3288.5,3287.8,3.2078]
[1765413916852,0.00258181,3288.5,3287.9,0.15204]
[1765413917051,0.00258181,3288.5,3288.2,3.2078]
[1765413917455,0.00258181,3288.5,3287.8,3.2078]
[1765413917651,2.91543072,3288.3,3287.4,3.2078]
[1765413917953,3.2078,3288.0,3287.4,3.2078]
[1765413918151,1.589057,3288.2,3287.5,0.15206]
[1765413918357,1.589057,3288.1,3287.5,0.15206]
[1765413918549,3.2078,3287.8,3287.4,0.0045619]
[1765413918748,1.589057,3287.7,3287.4,0.0045619]
[1765413918947,3.2078,3287.8,3287.4,0.0045619]
[1765413918948,1.589057,3287.8,3287.4,0.0045619]
[1765413919146,5.33314416,3287.7,3287.4,0.0045619]
[1765413919558,3.2078,3287.7,3287.4,0.0045619]
[1765413919857,2.12534416,3287.8,3287.4,0.0045619]
[1765413920047,2.12534416,3287.8,3287.4,3.2123619]
[1765413920248,2.12534416,3287.5,3287.4,3.2123619]
[1765413920455,0.15207,3287.4,3286.8,3.2078]
[1765413920755,2.10727627,3287.1,3287.0,0.15208]
[1765413920950,2.10727627,3287.3,3287.0,3.2078]
[1765413921154,1.58121388,3287.6,3287.2,0.15207]
[1765413921352,4.78901388,3287.8,3287.2,0.15207]
[1765413921549,0.00453827,3287.7,3287.2,0.15207]
[1765413921859,1.58121388,3287.6,3287.2,0.15207]
[1765413922159,0.00453827,3287.7,3287.6,0.15205]
[1765413922358,4.78901388,3288.3,3287.9,0.15204]
[1765413922555,3.2078,3288.3,3288.0,0.15203]
[1765413923154,3.2078,3288.3,3288.1,0.15203]
[1765413923459,1.58379569,3288.5,3288.2,0.15203]
[1765413923664,0.00258181,3288.5,3288.2,0.15203]
[1765413923959,0.00258181,3288.5,3287.8,3.2078]
[1765413924353,0.00258181,3288.5,3288.4,0.15202]
[1765413924557,0.00258181,3288.5,3287.9,0.15204]
[1765413924757,0.00258181,3288.5,3288.1,0.15203]
[1765413924958,0.00258181,3288.5,3288.2,0.15202]
[1765413925554,3.2078,3288.3,3287.5,3.2078]
[1765413925951,4.78901388,3288.3,3287.5,3.35986]
[1765413926160,4.78901388,3288.3,3287.5,3.2078]
[1765413926361,1.58121388,3288.4,3287.9,0.15204]
[1765413926553,3.2078,3288.3,3287.9,0.15204]
[1765413926753,3.2078,3288.3,3287.5,3.35986]
[1765413927462,3.2078,3287.9,3287.5,0.15206]
[1765413927759,0.87738437,3287.8,3287.5,0.15206]
[1765413927958,0.87738437,3287.7,3287.5,0.15206]
[1765413928154,0.87738437,3287.6,3287.5,0.15206]
[1765413928359,0.87738437,3287.6,3287.1,0.0045619]
[1765413928555,3.2078,3287.4,3287.1,0.0045619]
[1765413928759,0.87738437,3287.3,3287.2,0.15207]
[1765413931763,0.87738437,3287.3,3287.1,0.0045619]
[1765413931764,2.45859825,3287.3,3287.1,0.0045619]
[1765413931958,0.87738437,3287.2,3287.1,0.0045619]
[1765413932162,2.45859825,3287.2,3287.1,0.0045619]
[1765413933066,0.87738437,3287.2,3287.1,0.0045619]
[1765413934455,0.87738437,3287.2,3286.4,0.00228559]
[1765413934456,2.56028437,3287.2,3286.4,0.00228559]
[1765413934656,1.59109782,3286.5,3286.4,0.00228559]
[1765413934856,0.87738437,3286.5,3286.4,0.00228559]
[1765413935256,0.87738437,3286.5,3286.4,0.15439559]
[1765413937660,2.47083375,3286.5,3286.4,1.90349559]
[1765413937860,0.87738437,3286.5,3286.4,0.00228559]
[1765413938060,2.99884813,3286.5,3286.4,0.00228559]
[1765413938257,0.87738437,3286.5,3286.1,0.0045619]
[1765413938456,3.2078,3286.2,3286.1,0.0045619]
[1765413938760,4.08518437,3286.2,3285.7,0.15214]
[1765413938957,1.59507549,3285.8,3285.7,0.15214]
[1765413939166,0.87987688,3285.8,3285.7,0.15554162]
[1765413940566,0.87987688,3285.8,3285.7,0.00340162]
[1765413940966,10.08767688,3285.8,3285.7,0.00340162]
[1765413941163,10.08767688,3285.8,3285.4,3.2123619]
[1765413941359,0.87738437,3285.7,3284.7,8.68018]
[1765413941560,1.59457679,3284.8,3284.7,0.15218]
[1765413941761,0.87738437,3284.8,3284.7,0.15218]
[1765413942165,0.87738437,3284.8,3284.7,0.15444854]
[1765413944267,0.0045619,3285.1,3284.8,1.90128]
[1765413944467,0.82229377,3285.0,3284.8,1.90128]
[1765413944668,0.82229377,3284.9,3284.8,1.90128]
[1765413944967,0.0045619,3285.1,3284.8,1.90128]
[1765413944968,0.0045619,3285.1,3285.0,0.15217]
[1765413946467,0.0045619,3285.1,3284.7,3.21006854]
[1765413946668,2.91543072,3284.9,3284.7,0.00226854]
[1765413946867,2.91543072,3284.9,3284.4,0.0045619]
[1765413946868,0.82163525,3284.8,3284.4,0.0045619]
[1765413947066,0.82163525,3284.7,3284.4,0.0045619]
[1765413947263,0.82163525,3284.6,3284.4,0.0045619]
[1765413947462,6.12323072,3284.9,3284.4,0.0045619]
[1765413947671,0.82104706,3284.8,3284.4,0.0045619]
[1765413947871,0.82104706,3284.8,3284.4,0.00815261]
[1765413948271,6.12323072,3284.9,3284.4,0.00815261]
[1765413948673,2.40358164,3284.8,3284.4,0.00815261]
[1765413949271,3.2078,3284.5,3284.4,0.00815261]
[1765413949473,3.2078,3284.5,3283.9,3.2078]
[1765413950470,3.2078,3284.1,3283.9,0.0045619]
[1765413951574,9.2078,3284.1,3283.0,3.2078]
[1765413951775,2.40358164,3283.5,3283.0,3.36006]
[1765413951970,2.40610948,3283.5,3283.0,3.2078]
[1765413952373,2.40610948,3283.5,3283.1,0.15226]
[1765413952770,0.00252784,3283.5,3283.0,4.9614619]
[1765413952972,0.00252784,3283.5,3283.4,0.15225]
[1765413953775,0.00252784,3283.5,3283.4,3.36005]
[1765413955280,3.2078,3284.1,3284.0,0.15222]
[1765413955476,3.2078,3284.5,3284.0,0.15222]
[1765413956076,3.2078,3284.1,3284.0,0.00252784]
[1765413956378,8.9272,3284.1,3284.0,0.00252784]
[1765413956580,8.9272,3284.1,3284.0,0.15474784]
[1765413956979,1.76284088,3283.8,3283.4,3.36005]
[1765413957778,1.76284088,3283.8,3283.5,0.15224]
[1765413958374,1.76284088,3283.8,3283.6,0.15224]
[1765413958574,2.9348,3283.7,3283.6,0.15224]
[1765413959278,3.2078,3284.1,3283.4,3.2078]
[1765413959279,3.2078,3284.1,3283.7,1.6455]
[1765413959874,2.6993,3283.8,3283.5,0.15224]
[1765413960181,2.6993,3283.8,3283.6,0.15224]
[1765413960574,2.6993,3283.8,3283.7,0.15223]
[1765413960778,3.2106068,3284.5,3284.1,0.15221]
[1765413961080,3.2106068,3284.5,3283.7,1.6455]
[1765413961283,3.2106068,3284.5,3284.3,0.1522]
[1765413961582,1.4357,3284.4,3283.4,3.2078]
[1765413961883,1.4357,3284.4,3282.2,0.1523]
[1765413961884,0.15225,3283.4,3282.2,0.1523]
[1765413962179,0.9306,3283.7,3282.2,0.1523]
[1765413962180,4.97064088,3282.4,3282.2,0.1523]
[1765413962384,3.2078,3282.4,3282.2,0.1523]
[1765413965079,3.2078,3282.4,3282.0,0.00306491]
[1765413965280,6.0,3282.3,3281.6,0.00236223]
[1765413965476,1.76284088,3281.7,3281.6,0.00236223]
[1765413965678,1.76284088,3281.7,3281.4,0.15234]
[1765413965679,1.76543705,3281.7,3280.7,3.2078]
[1765413965876,3.2078,3281.3,3280.7,3.2078]
[1765413966386,3.2078,3281.3,3280.2,4.8533]
[1765413966581,3.2078,3281.3,3280.9,0.15236]
[1765413967078,3.2078,3281.3,3280.2,1.6455]
[1765413967079,4.97064088,3281.3,3280.2,1.6455]
[1765413967282,3.2078,3280.8,3280.2,1.7979]
[1765413967486,3.2078,3280.4,3280.2,0.1524]
[1765413967685,3.2078,3280.4,3280.3,0.15239]
[1765413967884,3.21236899,3280.8,3280.3,0.15239]
[1765413968084,3.21236899,3280.8,3280.4,0.15239]
[1765413968789,3.21236899,3280.8,3280.5,0.15238]
[1765413969290,4.97520987,3280.8,3279.9,0.15241]
[1765413969589,3.2078,3280.6,3280.0,0.15241]
[1765413969884,3.2078,3280.6,3279.8,3.2078]
[1765413971183,3.2078,3280.6,3280.0,1.5286]
[1765413971383,3.2078,3280.6,3280.5,0.15238]
[1765413972284,3.2078,3280.6,3279.7,0.15242]
[1765413972485,0.00456899,3280.8,3279.7,0.15242]
[1765413972486,3.2078,3280.1,3279.7,0.15242]
[1765413972683,3.2078,3280.1,3279.5,2.2945]
[1765413973282,3.2078,3280.5,3279.5,2.2945]
[1765413973489,0.00456899,3280.8,3280.3,0.15239]
[1765413974086,3.2078,3280.4,3279.6,0.15242]
[1765413974291,3.2078,3279.8,3279.5,0.649]
[1765413974593,3.2078,3279.8,3278.8,1.68106]
[1765413974781,3.2078,3279.4,3278.8,1.68106]
[1765413974985,3.21151442,3279.4,3278.8,1.68106]
[1765413975187,3.21151442,3279.4,3278.8,1.5286]
[1765413975485,0.00456899,3280.8,3279.7,0.15242]
[1765413975486,3.2078,3279.8,3279.7,0.15242]
[1765413975690,3.21236899,3280.8,3280.3,0.15239]
[1765413975987,0.00456899,3280.8,3280.1,3.2078]
[1765413976187,0.1523,3282.4,3280.1,3.2078]
[1765413976188,3.2078,3281.8,3280.8,1.5286]
[1765413976387,3.21020433,3281.8,3281.0,3.2078]
[1765413976590,3.21020433,3281.8,3281.7,0.15233]
[1765413976783,3.21020433,3281.8,3281.1,0.15235]
[1765413977287,3.21477332,3281.8,3281.1,0.00456899]
[1765413977687,3.21477332,3281.8,3281.3,0.15235]
[1765413977889,3.21477332,3281.8,3281.4,0.15234]
[1765413980087,3.21477332,3281.8,3281.5,0.15234]
[1765413981493,2.4457,3281.6,3281.5,0.15234]
[1765413982190,0.00697332,3281.8,3281.5,0.15234]
[1765413982382,0.00697332,3281.8,3281.7,0.15233]
[1765413982987,2.45267332,3281.8,3281.7,0.15233]
[1765413983189,5.04377332,3281.8,3281.7,0.15233]
[1765413983388,0.00697332,3281.8,3281.7,0.15233]
[1765413983788,0.00697332,3281.8,3281.4,3.2078]
[1765413983789,5.0368,3281.5,3281.4,3.2078]
[1765413983989,5.0368,3281.2,3281.1,0.00456899]
[1765413984189,0.00697332,3281.8,3281.6,2.6032]
[1765413984392,5.0368,3281.7,3281.6,0.15233]
[1765413984794,2.4457,3281.7,3281.6,0.15233]
[1765413985090,0.00697332,3281.8,3281.6,0.15233]
[1765413985294,0.00697332,3281.8,3281.7,5.25233]
[1765413985498,5.04377332,3281.8,3281.7,0.15233]
[1765413985798,2.45267332,3281.8,3281.7,0.15233]
[1765413985994,0.00697332,3281.8,3281.7,0.15233]
[1765413986498,0.00697332,3281.8,3281.7,5.25233]
[1765413986991,5.04377332,3281.8,3281.4,3.2078]
[1765413987198,2.4457,3281.5,3281.4,3.2078]
[1765413987594,2.4457,3281.5,3281.4,3.36014]
[1765413987595,5.0368,3281.5,3281.4,3.36014]
[1765413987790,5.0368,3281.2,3281.1,0.00456899]
[1765413988095,1.76284088,3281.2,3280.6,3.2078]
[1765413988287,1.5163,3280.9,3280.2,3.2078]
[1765413988494,0.7507,3280.2,3279.4,3.2078]
[1765413988699,3.2078,3280.3,3279.6,0.15242]
[1765413988897,3.2078,3280.7,3280.0,0.15241]
[1765413989098,3.21236899,3280.7,3280.0,0.15397898]
[1765413989898,3.21236899,3280.7,3280.0,0.00156898]
[1765413990094,3.2078,3280.1,3279.4,0.15243]
[1765413990398,3.2078,3279.7,3278.9,0.15245]
[1765413990701,3.2078,3279.3,3278.9,0.15245]
[1765413991200,3.21144162,3279.3,3279.0,0.15245]
[1765413991500,3.21144162,3279.3,3279.1,0.15245]
[1765413991895,3.21144162,3279.3,3278.8,1.5286]
[1765413992093,3.21144162,3279.3,3278.1,1.5286]
[1765413992298,0.00456899,3279.0,3278.4,3.2078]
[1765413992493,0.00456899,3279.0,3278.6,0.15247]
[1765413992695,0.00456899,3279.0,3278.1,1.5286]
[1765413992696,3.2078,3278.9,3278.1,1.5286]
[1765413992997,3.2078,3278.9,3278.0,3.2078]
[1765413993200,0.15251,3277.7,3276.3,3.2078]
[1765413993500,3.2078,3276.4,3276.0,1.5734]
[1765413993704,1.76284088,3276.7,3275.3,1.72602]
[1765413993906,0.15255,3276.9,3275.3,1.72602]
[1765413993907,3.2078,3275.8,3275.3,1.72602]
[1765413994102,3.2078,3275.7,3275.3,1.72602]
[1765413994403,3.2078,3276.1,3276.0,1.5734]
[1765413994702,3.21102325,3276.1,3276.0,1.72599]
[1765413994900,0.00322325,3276.1,3276.0,1.72599]
[1765413995097,3.2078,3276.8,3276.4,0.15257]
[1765413995493,3.2078,3276.8,3275.6,3.2078]
[1765413995797,3.2078,3276.0,3275.3,1.5734]
[1765413995998,3.21073333,3276.0,3275.3,1.57559394]
[1765413996200,3.21073333,3276.0,3275.3,0.00219394]
[1765413996402,3.2078,3275.6,3275.3,0.00219394]